bitfinex-derivatives/quotes_SOLF0:USTF0_20241215
["timestamp","ask_amount","ask_price","bid_price","bid_amount"]
[1734261356492,2.02,218.8,218.65,2.02]
[1734261356805,2.02,218.81,218.65,2.02]
[1734261357093,96.69571633,218.82,218.65,2.02]
[1734261357492,91.21522714,218.82,218.65,2.02]
[1734261357692,2.02,218.84,218.65,2.02]
[1734261358895,7.50522688,218.84,218.65,2.02]
[1734261359396,7.50522688,218.84,218.7,5.54616165]
[1734261359909,7.50522688,218.84,218.7,7.56616165]
[1734261360497,2.02,218.83,218.7,7.56616165]
[1734261360895,2.02,218.83,218.63,1.4665]
[1734261361094,2.02,218.83,218.64,2.02]
[1734261362701,2.02,218.83,218.68,5.57057073]
[1734261362901,2.02,218.83,218.69,2.02]
[1734261367206,2.02,218.83,218.63,1.4665]
[1734261367504,2.02,218.83,218.62,1.41]
[1734261367710,2.02,218.83,218.63,2.02]
[1734261368110,2.02,218.83,218.62,1.41]
[1734261368315,2.02,218.83,218.62,3.43]
[1734261368712,2.02,218.83,218.62,2.02]
[1734261368912,2.02,218.83,218.5,2.9537]
[1734261369119,13.76,218.82,218.58,5.41465843]
[1734261369320,13.76,218.82,218.58,7.43465843]
[1734261369520,1.4227,218.81,218.58,7.43465843]
[1734261369923,13.76,218.79,218.58,7.43465843]
[1734261370223,2.02,218.78,218.58,7.43465843]
[1734261370722,2.02,218.78,218.58,2.02]
[1734261372525,2.02,218.78,218.51,1.5229]
[1734261372719,2.02,218.78,218.52,2.02]
[1734261373033,2.02,218.78,218.57,5.44759333]
[1734261374526,2.02,218.78,218.56,2.02]
[1734261374925,2.02,218.78,218.54,2.02]
[1734261378124,2.02,218.78,218.55,5.5757797]
[1734261378525,5.55216049,218.69,218.55,5.5757797]
[1734261378721,5.1315,218.68,218.55,5.5757797]
[1734261378927,5.1315,218.68,218.53,2.04]
[1734261379127,1.4935,218.67,218.53,2.04]
[1734261379919,1.4935,218.67,218.53,7.50152867]
[1734261380323,5.1315,218.68,218.53,7.50152867]
[1734261381025,3.0915,218.68,218.53,7.50152867]
[1734261381425,5.1315,218.68,218.53,7.50152867]
[1734261392232,5.1315,218.68,218.53,5.46152867]
[1734261392434,5.1315,218.68,218.53,7.50152867]
[1734261392628,5.1315,218.68,218.53,2.04]
[1734261395234,5.1315,218.68,218.51,1.5229]
[1734261395433,5.1315,218.68,218.5,2.9537]
[1734261396726,18.8915,218.68,218.46,1.4568]
[1734261396925,18.8915,218.68,218.46,3.4968]
[1734261399334,18.8915,218.68,218.46,8.91697285]
[1734261399636,18.8915,218.68,218.46,6.87697285]
[1734261402430,5.54371187,218.59,218.46,1.4568]
[1734261402638,2.04,218.58,218.46,1.4568]
[1734261404309,5.54371187,218.59,218.46,1.4568]
[1734261404558,2.04,218.58,218.46,1.4568]
[1734261405361,5.54371187,218.59,218.46,1.4568]
[1734261405570,2.04,218.58,218.46,1.4568]
[1734261407151,5.54371187,218.59,218.46,1.4568]
[1734261407457,5.54371187,218.59,218.47,2.04]
[1734261407458,2.04,218.59,218.47,2.04]
[1734261409434,3.0915,218.68,218.47,2.04]
[1734261409742,2.04,218.67,218.48,2.70514759]
[1734261409936,3.0915,218.68,218.47,2.04]
[1734261410137,2.04,218.67,218.48,2.70510959]
[1734261410443,2.04,218.67,218.47,2.04]
[1734261410638,2.04,218.67,218.48,2.70681754]
[1734261410939,2.04,218.67,218.49,2.70681754]
[1734261411143,2.04,218.67,218.47,2.04]
[1734261411342,2.04,218.67,218.48,2.70871219]
[1734261411543,2.04,218.67,218.49,2.70871219]
[1734261411746,2.04,218.67,218.47,2.04]
[1734261411937,2.04,218.67,218.48,2.70871414]
[1734261412145,2.04,218.67,218.49,2.70871414]
[1734261412441,2.04,218.67,218.47,2.04]
[1734261412643,2.04,218.67,218.48,7.86328662]
[1734261412836,2.04,218.67,218.49,2.71106152]
[1734261413040,2.04,218.67,218.47,2.04]
[1734261413244,2.04,218.67,218.48,12.20576898]
[1734261413443,2.04,218.67,218.49,2.71209201]
[1734261413743,2.04,218.67,218.47,2.04]
[1734261413944,2.04,218.67,218.48,7.86627904]
[1734261414245,2.04,218.67,218.49,7.86624235]
[1734261414440,2.04,218.67,218.5,2.71209598]
[1734261414645,2.04,218.67,218.51,4.9414]
[1734261414840,2.04,218.67,218.52,4.75248945]
[1734261415039,2.04,218.67,218.52,2.04]
[1734261415754,3.0915,218.68,218.52,2.04]
[1734261415939,2.04,218.67,218.52,2.04]
[1734261417344,2.04,218.66,218.52,2.04]
[1734261418239,2.04,218.66,218.53,2.71302778]
[1734261418438,2.04,218.66,218.52,2.04]
[1734261418636,2.04,218.66,218.53,2.71301074]
[1734261418844,2.04,218.66,218.52,2.04]
[1734261419044,2.04,218.66,218.53,2.71299984]
[1734261419245,2.04,218.66,218.52,2.04]
[1734261419445,2.04,218.67,218.53,2.71314176]
[1734261419646,2.04,218.67,218.52,2.04]
[1734261419947,2.04,218.67,218.53,2.71311899]
[1734261420241,2.04,218.69,218.52,2.04]
[1734261420442,2.04,218.69,218.53,7.86943311]
[1734261420643,2.04,218.69,218.52,2.04]
[1734261420841,2.04,218.69,218.53,15.65339722]
[1734261421143,2.04,218.69,218.54,2.71279073]
[1734261421341,2.04,218.69,218.55,2.71279073]
[1734261421537,2.04,218.69,218.56,2.04]
[1734261422546,2.04,218.69,218.56,7.57217603]
[1734261423045,2.04,218.69,218.54,1.4823]
[1734261433049,2.04,218.69,218.53,85.57727676]
[1734261433252,2.04,218.69,218.51,1.4699]
[1734261435859,19.18392212,218.71,218.51,1.4699]
[1734261435860,2.04,218.68,218.51,1.4699]
[1734261436257,1.4997,218.67,218.51,1.4699]
[1734261436856,3.0113,218.66,218.51,1.4699]
[1734261438152,3.0113,218.66,218.39,1.5528]
[1734261438352,3.0113,218.66,218.4,24.77049304]
[1734261438551,3.0113,218.66,218.41,15.66149402]
[1734261438753,3.0113,218.66,218.42,15.66149402]
[1734261438956,3.0113,218.66,218.43,7.87263192]
[1734261439159,3.0113,218.66,218.44,2.04]
[1734261440358,3.0113,218.66,218.45,2.71381427]
[1734261440562,3.0113,218.66,218.44,2.04]
[1734261440860,3.0113,218.66,218.45,2.71378738]
[1734261441159,2.04,218.65,218.46,11.31465344]
[1734261441363,2.04,218.65,218.47,17.19622618]
[1734261441662,2.04,218.65,218.48,20.54322618]
[1734261441852,2.04,218.65,218.49,7.87019625]
[1734261442054,2.04,218.65,218.5,7.86937197]
[1734261442261,2.04,218.64,218.51,2.71312813]
[1734261442558,2.04,218.64,218.48,4.8874]
[1734261442763,2.04,218.64,218.49,15.65462084]
[1734261442965,2.04,218.64,218.5,7.8693148]
[1734261443261,2.04,218.64,218.51,2.71300269]
[1734261443463,2.04,218.64,218.48,4.8874]
[1734261443662,2.04,218.64,218.49,11.25308524]
[1734261443855,2.04,218.64,218.5,7.80850442]
[1734261444056,5.38946051,218.63,218.49,5.50757814]
[1734261446161,5.38946051,218.63,218.48,1.4122]
[1734261446761,2.04,218.62,218.48,1.4122]
[1734261448060,2.04,218.62,218.44,2.04]
[1734261449371,2.04,218.62,218.41,2.04]
[1734261449567,2.04,218.62,218.42,7.81516207]
[1734261449768,2.04,218.62,218.41,2.04]
[1734261449973,2.04,218.62,218.42,7.81507561]
[1734261450272,2.04,218.62,218.43,5.16123236]
[1734261450478,2.04,218.62,218.41,2.04]
[1734261450776,2.04,218.62,218.42,7.81460988]
[1734261451071,2.04,218.62,218.43,5.16056894]
[1734261451272,5.38946051,218.63,218.41,2.04]
[1734261451473,2.04,218.62,218.44,5.35935844]
[1734261453077,5.38946051,218.63,218.45,2.04]
[1734261453370,2.04,218.62,218.45,3.4943]
[1734261453677,2.04,218.62,218.46,14.21215616]
[1734261453878,2.04,218.62,218.47,7.81257446]
[1734261454177,2.04,218.62,218.46,2.9533]
[1734261454373,2.04,218.62,218.47,11.25821171]
[1734261454584,2.04,218.62,218.48,7.81210782]
[1734261454878,2.04,218.62,218.49,9.85210782]
[1734261455079,2.04,218.62,218.49,2.04]
[1734261457479,5.38946051,218.63,218.49,2.04]
[1734261457681,2.04,218.62,218.49,2.04]
[1734261458085,2.04,218.62,218.5,5.15877333]
[1734261458380,2.04,218.62,218.49,2.04]
[1734261458682,5.38946051,218.63,218.5,7.81163664]
[1734261458883,2.04,218.62,218.49,2.04]
[1734261459178,2.04,218.62,218.5,7.8116398]
[1734261459384,2.04,218.62,218.49,2.04]
[1734261459584,2.04,218.62,218.5,7.81162277]
[1734261459786,2.04,218.62,218.49,2.04]
[1734261459980,2.04,218.62,218.5,7.81164946]
[1734261460181,2.04,218.62,218.49,2.04]
[1734261460384,2.04,218.62,218.5,7.81186124]
[1734261460583,2.04,218.62,218.49,2.04]
[1734261460779,2.04,218.62,218.5,7.8118629]
[1734261460980,2.04,218.62,218.49,2.04]
[1734261461185,2.04,218.62,218.5,7.81183122]
[1734261461484,2.04,218.62,218.49,2.04]
[1734261461684,2.04,218.62,218.5,2.65305919]
[1734261461886,2.04,218.62,218.5,5.15907133]
[1734261462082,2.04,218.62,218.49,2.04]
[1734261462286,2.04,218.62,218.5,7.81255205]
[1734261462485,2.04,218.62,218.49,2.04]
[1734261462686,2.04,218.62,218.5,7.81244847]
[1734261462887,2.04,218.62,218.49,2.04]
[1734261463088,2.04,218.62,218.5,7.81216659]
[1734261463384,2.04,218.62,218.49,2.04]
[1734261463591,2.04,218.62,218.5,7.81206057]
[1734261463886,3.0113,218.66,218.51,7.81206057]
[1734261464088,3.0113,218.66,218.52,11.25755928]
[1734261464290,2.04,218.65,218.53,9.8517203]
[1734261464589,2.04,218.65,218.54,9.3292203]
[1734261464784,2.04,218.65,218.54,1.5175]
[1734261464991,2.04,218.65,218.55,5.15795495]
[1734261465290,2.04,218.65,218.54,1.5175]
[1734261465486,2.04,218.65,218.55,7.80834251]
[1734261465688,2.04,218.65,218.54,1.5175]
[1734261465887,2.04,218.65,218.55,7.80829705]
[1734261466189,2.04,218.65,218.56,5.15672864]
[1734261466490,2.04,218.64,218.54,1.5175]
[1734261466687,2.04,218.64,218.55,11.25061359]
[1734261466887,2.04,218.64,218.56,7.80684312]
[1734261467087,2.04,218.64,218.54,1.5175]
[1734261467290,2.04,218.64,218.55,7.80571758]
[1734261467487,2.04,218.64,218.56,5.1550409]
[1734261467691,2.04,218.64,218.54,1.5175]
[1734261468190,2.04,218.64,218.48,2.04]
[1734261468390,2.04,218.64,218.49,7.80850055]
[1734261468590,2.04,218.64,218.48,2.04]
[1734261468890,2.04,218.64,218.49,5.15661485]
[1734261469088,2.04,218.64,218.48,2.04]
[1734261469590,2.04,218.64,218.49,2.65202941]
[1734261469791,2.04,218.64,218.47,1.5124]
[1734261479802,2.04,218.64,218.45,1.4543]
[1734261482396,8.38763249,218.66,218.45,1.4543]
[1734261482695,2.04,218.65,218.46,8.11337339]
[1734261482899,2.04,218.65,218.46,2.9567]
[1734261483703,8.38763249,218.66,218.46,2.9567]
[1734261484005,2.04,218.65,218.46,2.9567]
[1734261484401,8.38763249,218.66,218.47,6.89625626]
[1734261484605,2.04,218.65,218.48,12.05146994]
[1734261484807,2.04,218.65,218.49,13.29282715]
[1734261485003,2.04,218.65,218.5,7.80870343]
[1734261485208,2.04,218.65,218.49,2.04]
[1734261485406,2.04,218.65,218.5,7.80714035]
[1734261485609,2.04,218.65,218.51,5.1557342]
[1734261485808,2.04,218.65,218.49,2.04]
[1734261486000,2.04,218.65,218.5,7.80711898]
[1734261486203,2.04,218.65,218.51,5.15571783]
[1734261486405,2.04,218.65,218.52,2.04]
[1734261486604,2.04,218.65,218.53,1.4996]
[1734261487111,2.04,218.65,218.54,1.5583]
[1734261487313,2.04,218.65,218.54,3.0187]
[1734261488510,2.04,218.64,218.54,3.0187]
[1734261494713,2.04,218.64,218.54,1.5583]
[1734261495316,2.04,218.64,218.5,2.04]
[1734261496213,2.04,218.64,218.51,5.15548934]
[1734261496412,2.04,218.64,218.48,5.1368]
[1734261496615,2.04,218.64,218.49,7.80707637]
[1734261496815,2.04,218.64,218.48,5.1368]
[1734261497021,2.04,218.64,218.49,7.80707006]
[1734261497215,2.04,218.64,218.48,5.1368]
[1734261497415,2.04,218.64,218.49,7.80797108]
[1734261497609,2.04,218.64,218.48,3.0968]
[1734261497811,2.04,218.64,218.49,7.80793065]
[1734261498018,2.04,218.64,218.48,3.0968]
[1734261498218,2.04,218.64,218.49,13.24033853]
[1734261498414,2.04,218.64,218.49,5.43146233]
[1734261500214,2.04,218.64,218.48,3.0968]
[1734261501417,2.04,218.64,218.48,1.5478]
[1734261502221,2.04,218.64,218.36,1.4997]
[1734261502521,2.04,218.64,218.37,26.08753775]
[1734261502822,2.04,218.64,218.38,21.00373775]
[1734261503020,2.04,218.64,218.39,21.00373775]
[1734261503323,2.04,218.64,218.44,5.48601067]
[1734261503524,2.04,218.64,218.45,7.80695518]
[1734261503820,2.04,218.64,218.44,5.48601067]
[1734261504020,2.04,218.64,218.45,9.33767829]
[1734261504220,2.04,218.64,218.46,5.15677988]
[1734261504424,2.04,218.64,218.45,1.531]
[1734261504625,2.04,218.64,218.46,5.15652994]
[1734261504819,2.04,218.64,218.45,1.531]
[1734261506218,2.04,218.64,218.37,1.5328]
[1734261506427,2.04,218.64,218.38,22.46937601]
[1734261506625,2.04,218.64,218.39,11.25044195]
[1734261506822,2.04,218.64,218.38,3.4885]
[1734261507023,5.5169929,218.55,218.39,7.80663106]
[1734261507225,5.0436,218.54,218.38,3.4885]
[1734261507426,5.0436,218.54,218.38,1.4685]
[1734261514735,5.0436,218.54,218.28,2.02]
[1734261514939,5.0436,218.54,218.29,11.23368896]
[1734261515239,18.8036,218.54,218.3,5.15040292]
[1734261515439,18.8036,218.54,218.29,5.37751162]
[1734261515633,18.8036,218.54,218.27,4.5091]
[1734261515941,18.8036,218.54,218.28,5.14729669]
[1734261516140,18.8036,218.54,218.27,4.5091]
[1734261516633,32.5536,218.54,218.27,4.5091]
[1734261517646,32.5536,218.54,218.28,5.53272033]
[1734261519129,5.43723205,218.41,218.28,5.53272033]
[1734261519335,2.02,218.4,218.28,5.53272033]
[1734261519936,2.02,218.4,218.26,133.71449494]
[1734261523337,2.02,218.4,218.27,5.55433958]
[1734261526235,5.43723205,218.41,218.27,5.55433958]
[1734261526436,2.02,218.4,218.27,5.55433958]
[1734261526639,5.43723205,218.41,218.28,2.02]
[1734261526841,2.02,218.39,218.28,2.02]
[1734261527641,5.43723205,218.41,218.28,2.02]
[1734261527642,2.06,218.38,218.28,2.02]
[1734261533245,5.43723205,218.41,218.28,2.02]
[1734261533438,2.06,218.38,218.28,2.02]
[1734261533636,16.7836,218.54,218.28,2.02]
[1734261533840,16.7836,218.54,218.29,11.1718277]
[1734261533841,3.0236,218.54,218.29,11.1718277]
[1734261534041,5.49193394,218.45,218.3,7.7500657]
[1734261534248,2.06,218.44,218.31,19.85462921]
[1734261534449,2.06,218.44,218.32,9.8100657]
[1734261534752,2.06,218.44,218.33,7.75163597]
[1734261535041,3.0236,218.54,218.32,2.06]
[1734261535248,2.06,218.53,218.33,11.17785499]
[1734261535553,2.06,218.53,218.34,8.54842123]
[1734261535748,5.51051619,218.49,218.35,2.62930992]
[1734261536041,2.06,218.48,218.36,2.06]
[1734261536242,2.06,218.48,218.37,2.06]
[1734261537443,3.0236,218.54,218.37,2.06]
[1734261537653,2.04,218.53,218.38,7.75902664]
[1734261537844,2.04,218.53,218.39,11.18445678]
[1734261538150,2.04,218.53,218.4,10.82154062]
[1734261538151,5.41594337,218.51,218.4,10.82154062]
[1734261538345,5.41594337,218.51,218.41,1.4896]
[1734261539650,2.04,218.53,218.41,3.5296]
[1734261540246,2.04,218.53,218.42,7.76573601]
[1734261540548,2.04,218.53,218.41,3.5296]
[1734261540755,2.04,218.53,218.42,7.76551358]
[1734261540949,2.04,218.53,218.41,3.5296]
[1734261541249,2.04,218.53,218.42,7.76550993]
[1734261541444,2.04,218.53,218.41,3.5296]
[1734261541651,2.04,218.53,218.42,7.76765226]
[1734261541853,2.04,218.53,218.41,3.5296]
[1734261542052,2.04,218.53,218.42,7.76765218]
[1734261542248,7.59953317,218.53,218.41,3.5296]
[1734261542448,7.59953317,218.53,218.42,7.76914991]
[1734261542652,7.59953317,218.53,218.41,3.5296]
[1734261542851,7.59953317,218.53,218.42,7.76914962]
[1734261543051,7.59953317,218.53,218.41,3.5296]
[1734261543254,7.59953317,218.53,218.42,7.76914973]
[1734261543448,7.59953317,218.53,218.43,7.76914973]
[1734261543652,7.59953317,218.53,218.41,3.5296]
[1734261544549,7.59953317,218.53,218.41,1.4896]
[1734261544950,1.4481,218.52,218.41,1.4896]
[1734261546254,1.4481,218.52,218.38,5.56879944]
[1734261546449,1.4736,218.51,218.39,5.14041351]
[1734261546649,1.4736,218.51,218.38,5.56879944]
[1734261546850,1.4736,218.51,218.39,5.14041351]
[1734261547051,1.4736,218.51,218.38,5.56879944]
[1734261547349,1.4736,218.51,218.39,7.77921718]
[1734261547545,1.4736,218.51,218.36,85.64238581]
[1734261547752,1.4736,218.51,218.37,7.78006839]
[1734261547951,1.4736,218.51,218.36,85.64238581]
[1734261548153,1.4736,218.51,218.37,7.78046223]
[1734261548354,1.4736,218.51,218.36,85.64238581]
[1734261548553,1.4369,218.5,218.36,85.64238581]
[1734261548754,2.04,218.49,218.36,85.64238581]
[1734261550360,2.04,218.49,218.3,6.393]
[1734261550550,2.04,218.49,218.31,5.14629793]
[1734261550856,2.04,218.49,218.3,4.353]
[1734261554355,2.04,218.49,218.22,2.04]
[1734261554560,2.04,218.49,218.23,17.21873827]
[1734261554756,2.04,218.49,218.27,5.63738257]
[1734261555462,2.04,218.49,218.28,7.78754179]
[1734261555662,2.04,218.48,218.27,5.63738257]
[1734261555862,2.04,218.48,218.28,11.22518285]
[1734261556157,5.45918628,218.41,218.29,7.78699929]
[1734261556354,5.45918628,218.41,218.27,5.63738257]
[1734261556355,2.04,218.4,218.27,5.63738257]
[1734261556556,2.04,218.4,218.28,7.78747136]
[1734261556751,2.04,218.4,218.27,5.63738257]
[1734261556954,2.04,218.4,218.28,7.78737027]
[1734261557268,2.04,218.4,218.27,5.63738257]
[1734261557563,2.04,218.4,218.28,7.78719252]
[1734261557758,2.04,218.4,218.27,5.63738257]
[1734261557957,2.04,218.4,218.28,7.78733575]
[1734261558155,2.04,218.4,218.27,5.63738257]
[1734261558359,2.04,218.4,218.28,7.78722964]
[1734261558662,2.04,218.4,218.27,5.63738257]
[1734261558862,2.04,218.4,218.28,7.78725896]
[1734261559066,2.04,218.4,218.27,5.63738257]
[1734261559362,2.04,218.4,218.28,7.78718218]
[1734261559562,2.04,218.4,218.29,7.78718229]
[1734261559763,2.04,218.4,218.27,5.63738257]
[1734261560062,2.04,218.4,218.28,7.78717917]
[1734261560265,2.04,218.4,218.29,7.78717917]
[1734261560565,2.04,218.4,218.27,5.63738257]
[1734261560763,2.04,218.4,218.28,11.22535171]
[1734261560962,2.04,218.4,218.29,7.78712283]
[1734261561265,2.04,218.4,218.27,5.63738257]
[1734261561266,2.04,218.4,218.3,2.640679]
[1734261561464,2.04,218.4,218.27,7.69738257]
[1734261561667,2.04,218.4,218.28,11.22551453]
[1734261561867,2.04,218.4,218.29,7.78724268]
[1734261562165,2.04,218.4,218.27,7.69738257]
[1734261562166,2.04,218.4,218.3,5.14654139]
[1734261562366,2.04,218.4,218.27,7.69738257]
[1734261562666,2.04,218.4,218.28,15.45161542]
[1734261562864,2.04,218.4,218.29,11.22611723]
[1734261563058,2.04,218.4,218.3,7.78765879]
[1734261563261,2.04,218.4,218.27,7.69738257]
[1734261563457,2.04,218.4,218.28,15.45233936]
[1734261563760,2.04,218.4,218.29,3.43861984]
[1734261563964,2.04,218.4,218.3,7.78801499]
[1734261564162,2.04,218.4,218.27,7.69738257]
[1734261564364,2.04,218.4,218.28,15.45253574]
[1734261564666,2.04,218.4,218.29,11.22687955]
[1734261564867,2.04,218.4,218.3,7.78828517]
[1734261565068,2.04,218.4,218.27,7.69738257]
[1734261565268,2.04,218.4,218.28,15.45480213]
[1734261565467,2.04,218.4,218.29,11.22843196]
[1734261565666,2.04,218.4,218.3,7.78926661]
[1734261565867,2.04,218.4,218.27,2.06]
[1734261566062,2.04,218.4,218.28,11.22862933]
[1734261566262,2.04,218.4,218.29,7.78944873]
[1734261566469,2.04,218.4,218.27,2.06]
[1734261566763,2.04,218.4,218.23,1.4104]
[1734261566764,2.04,218.4,218.28,7.79013794]
[1734261566962,2.04,218.4,218.24,2.06]
[1734261567160,2.04,218.4,218.25,20.96003248]
[1734261567359,2.04,218.4,218.26,15.45670292]
[1734261567563,2.04,218.4,218.27,11.22975407]
[1734261567762,2.04,218.4,218.28,7.7901731]
[1734261567968,2.04,218.4,218.23,1.4104]
[1734261568166,2.04,218.4,218.24,20.96132761]
[1734261568167,5.0757,218.4,218.24,20.96132761]
[1734261568470,5.0757,218.4,218.25,15.45769812]
[1734261568769,5.0757,218.4,218.26,11.23048587]
[1734261568970,5.0757,218.4,218.27,7.79071744]
[1734261569269,5.0757,218.4,218.23,1.4104]
[1734261569469,5.0757,218.4,218.24,20.96070516]
[1734261569660,5.0757,218.4,218.25,15.4571296]
[1734261569866,5.0757,218.4,218.26,11.23013125]
[1734261570168,5.0757,218.4,218.23,1.4104]
[1734261570371,5.0757,218.4,218.24,11.23006103]
[1734261570570,5.0757,218.4,218.25,7.79032591]
[1734261570766,5.0757,218.4,218.23,1.4104]
[1734261571069,5.0757,218.4,218.24,11.230074]
[1734261571270,5.0757,218.4,218.25,7.79035401]
[1734261571471,5.0757,218.4,218.23,1.4104]
[1734261571667,5.0757,218.4,218.24,11.22906861]
[1734261571972,5.0757,218.4,218.25,5.14805066]
[1734261572170,5.0757,218.4,218.23,7.0405434]
[1734261572673,5.0757,218.4,218.24,11.22734691]
[1734261572875,5.0757,218.4,218.23,7.0405434]
[1734261573072,18.8357,218.4,218.24,7.78873779]
[1734261573272,18.8357,218.4,218.23,1.4104]
[1734261573273,1.5296,218.39,218.23,1.4104]
[1734261573569,1.5296,218.39,218.1,6.32028348]
[1734261573870,1.5296,218.39,218.11,26.03828181]
[1734261574075,1.5296,218.39,218.12,20.95198181]
[1734261574268,1.5296,218.39,218.13,20.95198181]
[1734261574466,1.5296,218.39,218.14,20.95198181]
[1734261574666,1.5296,218.39,218.15,20.95198181]
[1734261574872,1.5296,218.39,218.11,5.0863]
[1734261574873,1.5296,218.39,218.16,20.95198181]
[1734261575073,1.5296,218.39,218.17,20.95198181]
[1734261575271,1.5296,218.39,218.18,16.91618151]
[1734261575477,1.5296,218.39,218.19,14.22625089]
[1734261575679,1.5296,218.39,218.2,7.78565091]
[1734261575976,1.5296,218.39,218.19,3.0023]
[1734261583983,1.5296,218.39,218.2,5.13597706]
[1734261584178,2.06,218.38,218.21,13.26241478]
[1734261584383,2.06,218.38,218.22,7.771247]
[1734261584692,2.06,218.38,218.23,5.13597706]
[1734261584884,2.06,218.38,218.21,2.06]
[1734261585081,2.06,218.38,218.22,11.20515185]
[1734261585286,2.06,218.38,218.23,7.77306206]
[1734261585589,2.06,218.38,218.21,2.06]
[1734261585885,2.06,218.38,218.22,11.2060405]
[1734261586085,2.06,218.38,218.23,7.77367661]
[1734261586285,2.06,218.38,218.19,3.0023]
[1734261586488,2.06,218.38,218.2,22.98398487]
[1734261586683,2.06,218.38,218.21,15.42948737]
[1734261586882,2.06,218.38,218.22,11.20939002]
[1734261587084,2.06,218.38,218.23,7.77532909]
[1734261587288,2.06,218.38,218.2,2.06]
[1734261587581,2.06,218.38,218.21,11.2180729]
[1734261587781,2.06,218.38,218.22,7.78201061]
[1734261587987,2.06,218.38,218.23,5.14296733]
[1734261588187,2.06,218.38,218.24,7.78321831]
[1734261588383,2.06,218.38,218.2,2.06]
[1734261588584,2.06,218.38,218.21,20.94995345]
[1734261588790,2.06,218.38,218.22,15.44921113]
[1734261588980,2.06,218.38,218.23,11.22430174]
[1734261589184,2.06,218.38,218.24,7.78633779]
[1734261589380,2.06,218.38,218.25,5.14587236]
[1734261589583,2.06,218.38,218.26,1.4703]
[1734261589782,2.06,218.38,218.27,1.4544]
[1734261600590,2.06,218.38,218.26,1.4703]
[1734261601392,2.06,218.38,218.2,1.5195]
[1734261601593,2.06,218.38,218.21,15.49918312]
[1734261601788,2.06,218.38,218.22,11.26037882]
[1734261601988,2.06,218.38,218.23,7.81142651]
[1734261602192,2.06,218.38,218.2,3.065]
[1734261602393,2.06,218.38,218.21,15.49999421]
[1734261602588,2.06,218.38,218.22,11.26098442]
[1734261602784,2.06,218.38,218.23,7.81178128]
[1734261602990,2.06,218.38,218.21,1.5517]
[1734261603191,2.06,218.38,218.22,11.2609065]
[1734261603389,2.06,218.38,218.23,7.81174144]
[1734261603592,2.06,218.38,218.21,1.5517]
[1734261603789,2.06,218.38,218.22,11.26159105]
[1734261604088,2.06,218.38,218.23,7.81221589]
[1734261604290,2.06,218.38,218.21,1.5517]
[1734261604490,2.06,218.38,218.22,11.26240126]
[1734261604690,2.06,218.38,218.23,7.812777]
[1734261604884,2.06,218.38,218.21,1.5517]
[1734261605489,1.4927,218.39,218.21,1.5517]
[1734261605693,2.04,218.37,218.21,1.5517]
[1734261605897,5.603908,218.3,218.21,1.5517]
[1734261606099,2.04,218.29,218.21,1.5517]
[1734261606794,2.04,218.29,218.2,1.5195]
[1734261606994,2.04,218.29,218.12,1.5107]
[1734261607188,2.04,218.29,218.13,21.02686649]
[1734261607388,2.04,218.29,218.14,15.50602749]
[1734261607594,2.04,218.29,218.15,11.26516699]
[1734261607794,2.04,218.29,218.16,7.81464262]
[1734261607991,2.04,218.29,218.12,4.6027]